[Event "FIDE World Rapid Chess Championship 2021"]
[White "Bluebaum, Matthias"]
[Black "Mamedyarov, Shakhriyar"]
[WhiteFideId "24651516"]
[BlackFideId "13401319"]
[WhiteElo "2575"]
[BlackElo "2727"]
[Result "0-1"]
[Round "10"]
[TimeControl "900+10"]
[Date "2021.12.28"]
[WhiteClock "0:00:20"]
[BlackClock "0:02:14"]

1. d4 {[%clk 0:15:00]}  Nf6 {[%clk 0:15:00]} 2. c4 {[%clk 0:15:00]}  g6 {[%clk 0:15:16]} 3. Nc3 {[%clk 0:16:38]}  d5 {[%clk 0:15:16]} 4. Bg5 {[%clk 0:16:38]}  Ne4 {[%clk 0:15:16]} 5. cxd5 {[%clk 0:16:38]}  Nxg5 {[%clk 0:15:16]} 6. h4 {[%clk 0:16:38]}  Ne4 {[%clk 0:15:16]} 7. Nxe4 {[%clk 0:16:38]}  Qxd5 {[%clk 0:15:16]} 8. Nc3 {[%clk 0:16:38]}  Qa5 {[%clk 0:15:16]} 9. h5 {[%clk 0:16:38]}  Bg7 {[%clk 0:15:16]} 10. h6 {[%clk 0:16:38]}  Bf6 {[%clk 0:15:16]} 11. Qd2 {[%clk 0:16:38]}  O-O {[%clk 0:15:16]} 12. Nf3 {[%clk 0:16:38]}  Rd8 {[%clk 0:15:16]} 13. e3 {[%clk 0:16:38]}  c5 {[%clk 0:15:16]} 14. Ne4 {[%clk 0:16:38]}  Qxd2+ {[%clk 0:15:16]} 15. Nfxd2 {[%clk 0:16:38]}  cxd4 {[%clk 0:15:16]} 16. Nxf6+ {[%clk 0:16:38]}  exf6 {[%clk 0:15:16]} 17. Ne4 {[%clk 0:16:38]}  Be6 {[%clk 0:13:31]} 18. Nxf6+ {[%clk 0:16:59]}  Kh8 {[%clk 0:13:31]} 19. Bb5 {[%clk 0:14:09]}  a6 {[%clk 0:11:56]} 20. Ba4 {[%clk 0:14:03]}  b5 {[%clk 0:11:56]} 21. Bb3 {[%clk 0:14:03]}  Bxb3 {[%clk 0:09:36]} 22. axb3 {[%clk 0:14:03]}  Nd7 {[%clk 0:09:36]} 23. Nxd7 {[%clk 0:12:10]}  Rxd7 {[%clk 0:09:39]} 24. Ke2 {[%clk 0:08:18]}  dxe3 {[%clk 0:09:48]} 25. fxe3 {[%clk 0:08:18]}  Re7 {[%clk 0:09:48]} 26. Rhd1 {[%clk 0:05:46]}  Rae8 {[%clk 0:08:53]} 27. Rd3 {[%clk 0:05:46]}  Re6 {[%clk 0:08:53]} 28. Rc1 {[%clk 0:05:46]}  Kg8 {[%clk 0:08:53]} 29. Kf2 {[%clk 0:05:13]}  Kf8 {[%clk 0:07:18]} 30. Rc7 {[%clk 0:05:13]}  Rf6+ {[%clk 0:07:18]} 31. Ke2 {[%clk 0:05:13]}  g5 {[%clk 0:07:18]} 32. Rd5 {[%clk 0:05:06]}  Rfe6 {[%clk 0:05:57]} 33. Rxg5 {[%clk 0:03:48]}  Rxe3+ {[%clk 0:05:31]} 34. Kf2 {[%clk 0:03:48]}  Re2+ {[%clk 0:05:31]} 35. Kg1 {[%clk 0:03:48]}  Re1+ {[%clk 0:05:31]} 36. Kf2 {[%clk 0:03:48]}  R8e2+ {[%clk 0:05:31]} 37. Kg3 {[%clk 0:03:48]}  Re3+ {[%clk 0:05:31]} 38. Kf2 {[%clk 0:03:48]}  R3e2+ {[%clk 0:05:31]} 39. Kg3 {[%clk 0:03:48]}  Re7 {[%clk 0:03:37]} 40. Rc8+ {[%clk 0:03:33]}  Re8 {[%clk 0:03:37]} 41. Rc7 {[%clk 0:03:33]}  R1e7 {[%clk 0:03:37]} 42. Rxe7 {[%clk 0:03:33]}  Rxe7 {[%clk 0:04:03]} 43. Rg7 {[%clk 0:02:11]}  f6 {[%clk 0:04:03]} 44. Rg4 {[%clk 0:00:14]}  Kf7 {[%clk 0:03:13]} 45. Kf4 {[%clk 0:00:14]}  Ke6 {[%clk 0:03:13]} 46. Rg8 {[%clk 0:00:14]}  Rd7 {[%clk 0:03:13]} 47. Ke4 {[%clk 0:00:14]}  f5+ {[%clk 0:03:13]} 48. Ke3 {[%clk 0:00:14]}  Kf6 {[%clk 0:03:13]} 49. b4 {[%clk 0:00:14]}  Rc7 {[%clk 0:03:13]} 50. g4 {[%clk 0:00:14]}  Re7+ {[%clk 0:03:13]} 51. Kf3 {[%clk 0:00:14]}  fxg4+ {[%clk 0:03:13]} 52. Rxg4 {[%clk 0:00:14]}  Rf7 {[%clk 0:03:13]} 53. Ke4 {[%clk 0:00:14]}  Ke6 {[%clk 0:03:13]} 54. Rh4 {[%clk 0:00:14]}  Rf6 {[%clk 0:03:16]} 55. Kd4 {[%clk 0:00:19]}  Kf5 {[%clk 0:03:16]} 56. Kc5 {[%clk 0:00:19]}  Kg5 {[%clk 0:03:16]} 57. Rh1 {[%clk 0:00:19]}  Rxh6 {[%clk 0:03:16]} 58. Rg1+ {[%clk 0:00:19]}  Kf6 {[%clk 0:03:16]} 59. Kb6 {[%clk 0:00:19]}  Kf7+ {[%clk 0:03:16]} 60. Ka5 {[%clk 0:00:19]}  Rf6 {[%clk 0:03:16]} 61. b3 {[%clk 0:00:19]}  Rf5 {[%clk 0:03:16]} 62. Kxa6 {[%clk 0:00:19]}  h5 {[%clk 0:03:16]} 63. Rh1 {[%clk 0:00:19]}  Kf6 {[%clk 0:03:16]} 64. Kb6 {[%clk 0:00:19]}  Kg5 {[%clk 0:03:16]} 65. Rg1+ {[%clk 0:00:19]}  Kf4 {[%clk 0:03:16]} 66. Rf1+ {[%clk 0:00:19]}  Kg4 {[%clk 0:03:16]} 67. Rg1+ {[%clk 0:00:19]}  Kf4 {[%clk 0:03:16]} 68. Rf1+ {[%clk 0:00:19]}  Kg5 {[%clk 0:03:16]} 69. Rg1+ {[%clk 0:00:19]}  Kf6 {[%clk 0:03:16]} 70. Rh1 {[%clk 0:00:19]}  Re5 {[%clk 0:03:16]} 71. Kc6 {[%clk 0:00:22]}  Kg5 {[%clk 0:03:38]} 72. Rg1+ {[%clk 0:00:22]}  Kf4 {[%clk 0:03:38]} 73. Kd6 {[%clk 0:00:22]}  Rg5 {[%clk 0:03:38]} 74. Rf1+ {[%clk 0:00:22]}  Ke3 {[%clk 0:03:38]} 75. Rh1 {[%clk 0:00:22]}  Kf2 {[%clk 0:03:38]} 76. Kc6 {[%clk 0:00:22]}  Kg2 {[%clk 0:03:38]} 77. Rh4 {[%clk 0:00:22]}  Kg3 {[%clk 0:03:38]} 78. Rd4 {[%clk 0:00:22]}  h4 {[%clk 0:03:38]} 79. Rd3+ {[%clk 0:00:22]}  Kg4 {[%clk 0:03:38]} 80. Rd4+ {[%clk 0:00:22]}  Kh5 {[%clk 0:03:38]} 81. Rd3 {[%clk 0:00:22]}  Rf5 {[%clk 0:03:38]} 82. Kb6 {[%clk 0:00:22]}  Kg4 {[%clk 0:03:00]} 83. Rd4+ {[%clk 0:00:06]}  Kg3 {[%clk 0:03:00]} 84. Rd3+ {[%clk 0:00:06]}  Kf2 {[%clk 0:03:00]} 85. Rd2+ {[%clk 0:00:06]}  Ke3 {[%clk 0:03:00]} 86. Rh2 {[%clk 0:00:06]}  Rh5 {[%clk 0:03:00]} 87. Rh3+ {[%clk 0:00:06]}  Ke4 {[%clk 0:03:00]} 88. Ka5 {[%clk 0:00:06]}  Kf5 {[%clk 0:03:00]} 89. Rh1 {[%clk 0:00:13]}  Kg4 {[%clk 0:02:14]} 90. Rg1+ {[%clk 0:00:13]}  Kf3 {[%clk 0:02:14]} 91. Rh1 {[%clk 0:00:20]}  h3 {[%clk 0:02:14]} 92. Rf1+ {[%clk 0:00:20]}  Kg2 {[%clk 0:02:14]} 93. Rc1 {[%clk 0:00:20]}  h2 {[%clk 0:02:14]} 94. Rc2+ {[%clk 0:00:20]}  Kh3 {[%clk 0:02:14]} 95. Rc1 {[%clk 0:00:20]}  Rf5 {[%clk 0:02:14]} 0-1


[Site "http://www.Chess.com"]

[Event "FIDE World Rapid Chess Championship 2021"]
[White "Maghsoodloo, Parham"]
[Black "Shirov, Alexei"]
[WhiteFideId "12539929"]
[BlackFideId "2209390"]
[WhiteElo "2512"]
[BlackElo "2702"]
[Result "1/2-1/2"]
[Round "10"]
[TimeControl "900+10"]
[Date "2021.12.28"]
[WhiteClock "0:01:10"]
[BlackClock "0:00:33"]

1. e4 {[%clk 0:15:00]}  e5 {[%clk 0:15:00]} 2. Nf3 {[%clk 0:15:00]}  Nc6 {[%clk 0:15:00]} 3. Bb5 {[%clk 0:15:00]}  a6 {[%clk 0:16:21]} 4. Ba4 {[%clk 0:16:50]}  Nf6 {[%clk 0:16:21]} 5. O-O {[%clk 0:16:50]}  b5 {[%clk 0:16:21]} 6. Bb3 {[%clk 0:16:50]}  Bc5 {[%clk 0:16:21]} 7. a4 {[%clk 0:16:50]}  Rb8 {[%clk 0:16:21]} 8. c3 {[%clk 0:16:50]}  d6 {[%clk 0:16:21]} 9. d4 {[%clk 0:16:50]}  Bb6 {[%clk 0:16:21]} 10. a5 {[%clk 0:16:50]}  Ba7 {[%clk 0:16:21]} 11. h3 {[%clk 0:16:50]}  Bb7 {[%clk 0:16:21]} 12. Re1 {[%clk 0:16:50]}  O-O {[%clk 0:16:21]} 13. Be3 {[%clk 0:16:50]}  exd4 {[%clk 0:16:21]} 14. cxd4 {[%clk 0:16:50]}  Nb4 {[%clk 0:16:21]} 15. d5 {[%clk 0:16:50]}  c5 {[%clk 0:14:01]} 16. Nbd2 {[%clk 0:17:16]}  Re8 {[%clk 0:14:01]} 17. Bc2 {[%clk 0:17:16]}  Nxc2 {[%clk 0:11:42]} 18. Qxc2 {[%clk 0:17:25]}  Rc8 {[%clk 0:11:42]} 19. Bf4 {[%clk 0:17:25]}  c4 {[%clk 0:09:09]} 20. Be3 {[%clk 0:16:04]}  Bc5 {[%clk 0:09:09]} 21. Bxc5 {[%clk 0:16:04]}  Rxc5 {[%clk 0:09:09]} 22. Qc3 {[%clk 0:16:04]}  Nd7 {[%clk 0:09:09]} 23. Nd4 {[%clk 0:15:41]}  g6 {[%clk 0:07:15]} 24. Re3 {[%clk 0:15:41]}  Qf6 {[%clk 0:07:15]} 25. N2f3 {[%clk 0:15:10]}  Ne5 {[%clk 0:06:05]} 26. Nxe5 {[%clk 0:15:10]}  Qxe5 {[%clk 0:06:05]} 27. Rd1 {[%clk 0:13:49]}  Rc7 {[%clk 0:06:01]} 28. Nc2 {[%clk 0:10:45]}  Rce7 {[%clk 0:04:45]} 29. Rde1 {[%clk 0:10:45]}  f5 {[%clk 0:02:15]} 30. exf5 {[%clk 0:10:32]}  Qxd5 {[%clk 0:02:15]} 31. f3 {[%clk 0:10:32]}  Rxe3 {[%clk 0:02:19]} 32. Nxe3 {[%clk 0:08:04]}  Qe5 {[%clk 0:02:19]} 33. fxg6 {[%clk 0:08:04]}  hxg6 {[%clk 0:02:19]} 34. Kf2 {[%clk 0:08:04]}  Kf7 {[%clk 0:02:14]} 35. Rd1 {[%clk 0:07:01]}  d5 {[%clk 0:02:14]} 36. Ng4 {[%clk 0:07:01]}  Qxc3 {[%clk 0:02:14]} 37. bxc3 {[%clk 0:07:01]}  Bc6 {[%clk 0:02:14]} 38. Ne3 {[%clk 0:07:01]}  Ke6 {[%clk 0:00:36]} 39. Nc2 {[%clk 0:06:57]}  Kd6 {[%clk 0:00:36]} 40. Nb4 {[%clk 0:06:57]}  Bb7 {[%clk 0:00:36]} 41. Rd4 {[%clk 0:06:57]}  Re5 {[%clk 0:00:36]} 42. h4 {[%clk 0:06:57]}  Ke6 {[%clk 0:00:36]} 43. g4 {[%clk 0:06:07]}  Kf7 {[%clk 0:00:19]} 44. Rf4+ {[%clk 0:02:51]}  Kg7 {[%clk 0:00:45]} 45. g5 {[%clk 0:02:51]}  Re8 {[%clk 0:00:45]} 46. Rf6 {[%clk 0:02:51]}  d4 {[%clk 0:00:45]} 47. cxd4 {[%clk 0:02:51]}  c3 {[%clk 0:00:45]} 48. Rb6 {[%clk 0:02:51]}  Re7 {[%clk 0:00:45]} 49. d5 {[%clk 0:02:51]}  Rc7 {[%clk 0:00:45]} 50. d6 {[%clk 0:02:51]}  c2 {[%clk 0:00:45]} 51. Nd3 {[%clk 0:02:51]}  Rf7 {[%clk 0:00:45]} 52. Nc1 {[%clk 0:02:51]}  Bxf3 {[%clk 0:00:45]} 53. Ke3 {[%clk 0:02:51]}  Bb7 {[%clk 0:00:45]} 54. Kd3 {[%clk 0:02:51]}  Bc8 {[%clk 0:00:45]} 55. Kxc2 {[%clk 0:02:51]}  Rf4 {[%clk 0:00:45]} 56. Nb3 {[%clk 0:02:14]}  Kf7 {[%clk 0:00:42]} 57. Kd2 {[%clk 0:02:14]}  Rxh4 {[%clk 0:00:42]} 58. Nc5 {[%clk 0:02:14]}  Rc4 {[%clk 0:00:42]} 59. Rc6 {[%clk 0:02:14]}  Bf5 {[%clk 0:00:42]} 60. Rc7+ {[%clk 0:02:14]}  Ke8 {[%clk 0:00:42]} 61. Ke3 {[%clk 0:02:14]}  b4 {[%clk 0:00:42]} 62. Nxa6 {[%clk 0:02:14]}  Rxc7 {[%clk 0:00:42]} 63. Nxc7+ {[%clk 0:02:14]}  Kd7 {[%clk 0:00:42]} 64. a6 {[%clk 0:02:14]}  b3 {[%clk 0:00:42]} 65. Nb5 {[%clk 0:02:14]}  b2 {[%clk 0:00:42]} 66. Na3 {[%clk 0:02:14]}  Bh3 {[%clk 0:00:42]} 67. Kf3 {[%clk 0:01:10]}  Be6 {[%clk 0:00:33]} 68. Ke4 {[%clk 0:01:10]}  Kxd6 {[%clk 0:00:33]} 69. a7 {[%clk 0:01:10]}  Bd5+ {[%clk 0:00:33]} 70. Kd4 {[%clk 0:01:10]}  Ke6 {[%clk 0:00:33]} 71. Kc3 {[%clk 0:01:10]}  Kf5 {[%clk 0:00:33]} 72. Kxb2 {[%clk 0:01:10]}  Kxg5 {[%clk 0:00:33]} 73. Kc3 {[%clk 0:01:10]}  Kf4 {[%clk 0:00:33]} 74. Kd4 {[%clk 0:01:10]}  Bb7 {[%clk 0:00:33]} 75. Nc4 {[%clk 0:01:10]} 1/2-1/2


[Site "http://www.Chess.com"]

[Event "FIDE World Rapid Chess Championship 2021"]
[White "Korobov, Anton"]
[Black "Sanal, Vahap"]
[WhiteFideId "14105730"]
[BlackFideId "6300545"]
[WhiteElo "2689"]
[BlackElo "2509"]
[Result "*"]
[Round "10"]
[TimeControl "900+10"]
[Date "2021.12.28"]
[WhiteClock "0:03:11"]
[BlackClock "0:01:34"]

1. d4 {[%clk 0:15:00]}  Nf6 {[%clk 0:15:00]} 2. c4 {[%clk 0:15:00]}  c6 {[%clk 0:15:42]} 3. Nc3 {[%clk 0:16:32]}  d5 {[%clk 0:15:42]} 4. Nf3 {[%clk 0:16:32]}  e6 {[%clk 0:15:42]} 5. e3 {[%clk 0:16:32]}  Nbd7 {[%clk 0:15:42]} 6. Qc2 {[%clk 0:16:32]}  Bd6 {[%clk 0:15:42]} 7. Bd3 {[%clk 0:16:32]}  dxc4 {[%clk 0:15:42]} 8. Bxc4 {[%clk 0:16:32]}  b5 {[%clk 0:15:42]} 9. Be2 {[%clk 0:16:32]}  O-O {[%clk 0:15:42]} 10. O-O {[%clk 0:16:32]}  Bb7 {[%clk 0:15:42]} 11. e4 {[%clk 0:16:32]}  e5 {[%clk 0:15:42]} 12. dxe5 {[%clk 0:16:32]}  Nxe5 {[%clk 0:15:42]} 13. Nh4 {[%clk 0:16:32]}  Bc8 {[%clk 0:15:42]} 14. f4 {[%clk 0:14:56]}  Bc5+ {[%clk 0:15:42]} 15. Kh1 {[%clk 0:14:56]}  Neg4 {[%clk 0:15:42]} 16. e5 {[%clk 0:15:04]}  Nf2+ {[%clk 0:08:31]} 17. Rxf2 {[%clk 0:12:46]}  Bxf2 {[%clk 0:08:31]} 18. Nf3 {[%clk 0:12:46]}  Ne8 {[%clk 0:08:31]} 19. Bd3 {[%clk 0:12:46]}  g6 {[%clk 0:08:31]} 20. f5 {[%clk 0:12:46]}  Bb6 {[%clk 0:08:27]} 21. Bh6 {[%clk 0:11:49]}  Ng7 {[%clk 0:08:27]} 22. Bxg7 {[%clk 0:10:29]}  Kxg7 {[%clk 0:06:19]} 23. f6+ {[%clk 0:10:29]}  Kh8 {[%clk 0:06:19]} 24. Qd2 {[%clk 0:10:29]}  g5 {[%clk 0:06:19]} 25. Rd1 {[%clk 0:10:29]}  Rg8 {[%clk 0:05:23]} 26. Nxg5 {[%clk 0:09:57]}  Rxg5 {[%clk 0:05:23]} 27. Qxg5 {[%clk 0:09:57]}  Qg8 {[%clk 0:05:23]} 28. Qh4 {[%clk 0:09:57]}  Be6 {[%clk 0:05:23]} 29. h3 {[%clk 0:09:33]}  Rd8 {[%clk 0:03:10]} 30. Ne4 {[%clk 0:09:33]}  Rd4 {[%clk 0:03:10]} 31. Bc2 {[%clk 0:08:53]}  Qg6 {[%clk 0:02:43]} 32. Rxd4 {[%clk 0:06:14]}  Bxd4 {[%clk 0:02:02]} 33. Qf4 {[%clk 0:06:14]}  Qf5 {[%clk 0:02:02]} 34. Qxf5 {[%clk 0:06:16]}  Bxf5 {[%clk 0:01:25]} 35. g4 {[%clk 0:06:16]}  Bg6 {[%clk 0:01:25]} 36. h4 {[%clk 0:06:16]}  Bxe5 {[%clk 0:01:34]} 37. h5 {[%clk 0:03:11]}  Bxe4+ {[%clk 0:01:34]} 38. Bxe4 {[%clk 0:03:11]} *


[Site "http://www.Chess.com"]

[Event "FIDE World Rapid Chess Championship 2021"]
[White "Svane, Rasmus"]
[Black "Ivic, Velimir"]
[WhiteFideId "4657101"]
[BlackFideId "950122"]
[WhiteElo "2677"]
[BlackElo "2357"]
[Result "1/2-1/2"]
[Round "10"]
[TimeControl "900+10"]
[Date "2021.12.28"]
[WhiteClock "0:00:36"]
[BlackClock "0:01:29"]

1. d4 {[%clk 0:15:00]}  Nf6 {[%clk 0:15:00]} 2. Nf3 {[%clk 0:15:18]}  d5 {[%clk 0:15:44]} 3. c4 {[%clk 0:15:18]}  e6 {[%clk 0:15:44]} 4. g3 {[%clk 0:15:18]}  Bb4+ {[%clk 0:15:44]} 5. Bd2 {[%clk 0:15:18]}  a5 {[%clk 0:15:44]} 6. Bg2 {[%clk 0:15:18]}  O-O {[%clk 0:15:44]} 7. Qc2 {[%clk 0:15:18]}  c5 {[%clk 0:15:44]} 8. cxd5 {[%clk 0:15:18]}  cxd4 {[%clk 0:15:44]} 9. a3 {[%clk 0:15:18]}  Bxd2+ {[%clk 0:15:44]} 10. Qxd2 {[%clk 0:15:18]}  Qxd5 {[%clk 0:15:44]} 11. Qxd4 {[%clk 0:15:18]}  Qb5 {[%clk 0:15:44]} 12. Qe5 {[%clk 0:14:17]}  Qb6 {[%clk 0:15:20]} 13. Nbd2 {[%clk 0:14:17]}  Nc6 {[%clk 0:12:16]} 14. Qc3 {[%clk 0:14:06]}  Qa6 {[%clk 0:12:16]} 15. Nc4 {[%clk 0:14:06]}  b5 {[%clk 0:11:09]} 16. Nce5 {[%clk 0:11:07]}  Nxe5 {[%clk 0:09:28]} 17. Qxe5 {[%clk 0:11:07]}  Bb7 {[%clk 0:09:28]} 18. O-O {[%clk 0:11:07]}  Rac8 {[%clk 0:09:28]} 19. Rfd1 {[%clk 0:11:07]}  Bd5 {[%clk 0:08:30]} 20. Nd4 {[%clk 0:10:16]}  Bxg2 {[%clk 0:08:03]} 21. Kxg2 {[%clk 0:09:26]}  b4 {[%clk 0:03:58]} 22. axb4 {[%clk 0:09:34]}  Qb7+ {[%clk 0:03:58]} 23. Nf3 {[%clk 0:09:34]}  axb4 {[%clk 0:02:39]} 24. Rd4 {[%clk 0:08:23]}  Rc2 {[%clk 0:02:39]} 25. Rad1 {[%clk 0:06:50]}  h6 {[%clk 0:01:50]} 26. R1d2 {[%clk 0:06:04]}  Rfc8 {[%clk 0:01:33]} 27. b3 {[%clk 0:06:04]}  Rxd2 {[%clk 0:00:32]} 28. Rxd2 {[%clk 0:02:51]}  Nd5 {[%clk 0:00:32]} 29. Rd4 {[%clk 0:02:51]}  Rc3 {[%clk 0:00:32]} 30. Rg4 {[%clk 0:02:51]}  g6 {[%clk 0:00:32]} 31. Rh4 {[%clk 0:01:52]}  h5 {[%clk 0:00:23]} 32. Rd4 {[%clk 0:01:52]}  Qc7 {[%clk 0:00:23]} 33. e4 {[%clk 0:00:25]}  Qxe5 {[%clk 0:00:24]} 34. Nxe5 {[%clk 0:00:25]}  Nf6 {[%clk 0:00:24]} 35. Rxb4 {[%clk 0:00:25]}  Rc2 {[%clk 0:00:24]} 36. Rb8+ {[%clk 0:00:25]}  Kg7 {[%clk 0:00:24]} 37. Rb7 {[%clk 0:00:25]}  Ng4 {[%clk 0:00:24]} 38. Nxg4 {[%clk 0:00:25]}  hxg4 {[%clk 0:00:24]} 39. e5 {[%clk 0:00:25]}  Rc5 {[%clk 0:00:24]} 40. Rb4 {[%clk 0:00:25]}  Rxe5 {[%clk 0:00:24]} 41. Rxg4 {[%clk 0:00:25]}  Re2 {[%clk 0:00:24]} 42. Rc4 {[%clk 0:00:25]}  Rb2 {[%clk 0:00:24]} 43. b4 {[%clk 0:00:25]}  e5 {[%clk 0:00:24]} 44. Kf3 {[%clk 0:00:25]}  f5 {[%clk 0:00:24]} 45. h3 {[%clk 0:00:25]}  Kf6 {[%clk 0:00:24]} 46. Rc6+ {[%clk 0:00:25]}  Kf7 {[%clk 0:00:24]} 47. Rb6 {[%clk 0:00:25]}  Rb3+ {[%clk 0:00:24]} 48. Kg2 {[%clk 0:00:25]}  e4 {[%clk 0:00:29]} 49. b5 {[%clk 0:00:07]}  Rb2 {[%clk 0:00:29]} 50. Kf1 {[%clk 0:00:07]}  g5 {[%clk 0:00:29]} 51. Rb7+ {[%clk 0:00:07]}  Kf6 {[%clk 0:00:29]} 52. Rb8 {[%clk 0:00:07]}  f4 {[%clk 0:00:29]} 53. gxf4 {[%clk 0:00:07]}  gxf4 {[%clk 0:00:29]} 54. b6 {[%clk 0:00:07]}  e3 {[%clk 0:00:29]} 55. fxe3 {[%clk 0:00:07]}  fxe3 {[%clk 0:00:29]} 56. h4 {[%clk 0:00:07]}  e2+ {[%clk 0:00:29]} 57. Kf2 {[%clk 0:00:07]}  Kg7 {[%clk 0:00:29]} 58. Ke1 {[%clk 0:00:07]}  Kh7 {[%clk 0:00:29]} 59. Rb7+ {[%clk 0:00:07]}  Kg6 {[%clk 0:00:29]} 60. Kf2 {[%clk 0:00:07]}  Kh6 {[%clk 0:00:29]} 61. Rb8 {[%clk 0:00:07]}  Kg7 {[%clk 0:00:29]} 62. h5 {[%clk 0:00:07]}  Kh7 {[%clk 0:00:29]} 63. b7 {[%clk 0:00:07]}  e1=Q+ {[%clk 0:01:29]} 64. Kxe1 {[%clk 0:00:36]}  Rb1+ {[%clk 0:01:29]} 65. Kd2 {[%clk 0:00:36]}  Rb2+ {[%clk 0:01:29]} 66. Kc3 {[%clk 0:00:36]}  Rb1 {[%clk 0:01:29]} 67. h6 {[%clk 0:00:36]}  Rb6 {[%clk 0:01:29]} 68. Kd4 {[%clk 0:00:36]}  Rb1 {[%clk 0:01:29]} 69. Kc5 {[%clk 0:00:36]}  Rc1+ {[%clk 0:01:29]} 1/2-1/2


[Site "http://www.Chess.com"]

[Event "FIDE World Rapid Chess Championship 2021"]
[White "Puranik, Abhimanyu"]
[Black "Paravyan, David"]
[WhiteFideId "5061245"]
[BlackFideId "4194985"]
[WhiteElo "2472"]
[BlackElo "2671"]
[Result "1-0"]
[Round "10"]
[TimeControl "900+10"]
[Date "2021.12.28"]
[WhiteClock "0:01:09"]
[BlackClock "0:00:38"]

1. e4 {[%clk 0:15:00]}  c5 {[%clk 0:15:00]} 2. Nf3 {[%clk 0:14:18]}  Nc6 {[%clk 0:16:05]} 3. Bb5 {[%clk 0:14:18]}  g6 {[%clk 0:16:05]} 4. Bxc6 {[%clk 0:14:18]}  bxc6 {[%clk 0:16:05]} 5. O-O {[%clk 0:14:18]}  Bg7 {[%clk 0:16:05]} 6. c3 {[%clk 0:14:18]}  d6 {[%clk 0:16:05]} 7. h3 {[%clk 0:14:18]}  Nf6 {[%clk 0:16:05]} 8. Re1 {[%clk 0:14:18]}  O-O {[%clk 0:16:05]} 9. d4 {[%clk 0:14:18]}  cxd4 {[%clk 0:16:05]} 10. cxd4 {[%clk 0:14:18]}  c5 {[%clk 0:16:05]} 11. d5 {[%clk 0:13:17]}  Nd7 {[%clk 0:16:11]} 12. Qc2 {[%clk 0:13:17]}  Rb8 {[%clk 0:16:11]} 13. Nbd2 {[%clk 0:13:17]}  Ba6 {[%clk 0:16:11]} 14. Rb1 {[%clk 0:13:17]}  Qa5 {[%clk 0:15:03]} 15. Re3 {[%clk 0:10:56]}  Rfc8 {[%clk 0:14:48]} 16. b3 {[%clk 0:09:18]}  Nb6 {[%clk 0:14:48]} 17. h4 {[%clk 0:07:32]}  h6 {[%clk 0:13:21]} 18. a3 {[%clk 0:07:32]}  Qb5 {[%clk 0:09:58]} 19. h5 {[%clk 0:07:15]}  Bd4 {[%clk 0:09:58]} 20. a4 {[%clk 0:05:33]}  Qb4 {[%clk 0:07:07]} 21. hxg6 {[%clk 0:05:33]}  Bxe3 {[%clk 0:07:07]} 22. gxf7+ {[%clk 0:05:33]}  Kxf7 {[%clk 0:07:07]} 23. fxe3 {[%clk 0:05:33]}  Rg8 {[%clk 0:05:36]} 24. Bb2 {[%clk 0:05:25]}  Nd7 {[%clk 0:05:36]} 25. Bc3 {[%clk 0:04:46]}  Qb7 {[%clk 0:03:31]} 26. Nh4 {[%clk 0:04:46]}  Ke8 {[%clk 0:03:31]} 27. Nf5 {[%clk 0:03:33]}  Kd8 {[%clk 0:02:55]} 28. Ba5+ {[%clk 0:03:33]}  Nb6 {[%clk 0:02:55]} 29. b4 {[%clk 0:03:33]}  cxb4 {[%clk 0:02:55]} 30. Nd4 {[%clk 0:02:41]}  Rc8 {[%clk 0:01:53]} 31. Qd1 {[%clk 0:02:41]}  Rc3 {[%clk 0:01:53]} 32. Qf3 {[%clk 0:02:41]}  Kc8 {[%clk 0:01:53]} 33. Bxb4 {[%clk 0:02:37]}  Rd3 {[%clk 0:00:15]} 34. Nc6 {[%clk 0:01:09]}  Qd7 {[%clk 0:00:38]} 35. a5 {[%clk 0:01:09]}  Nc4 {[%clk 0:00:38]} 36. Nxc4 {[%clk 0:01:09]}  Bxc4 {[%clk 0:00:38]} 37. Be1 {[%clk 0:01:09]}  Rb3 {[%clk 0:00:38]} 38. Rc1 {[%clk 0:01:09]}  Kb7 {[%clk 0:00:38]} 39. Rxc4 {[%clk 0:01:09]}  Rb1 {[%clk 0:00:38]} 40. Qe2 {[%clk 0:01:09]}  Ka8 {[%clk 0:00:38]} 41. Rb4 {[%clk 0:01:09]}  Ra1 {[%clk 0:00:38]} 42. a6 {[%clk 0:01:09]}  Qc8 {[%clk 0:00:38]} 43. Rb8+ {[%clk 0:01:09]}  Qxb8 {[%clk 0:00:38]} 44. Nxb8 {[%clk 0:01:09]}  Rxb8 {[%clk 0:00:38]} 45. Kh2 {[%clk 0:01:09]}  Rb6 {[%clk 0:00:38]} 46. Bc3 {[%clk 0:01:09]}  Ra4 {[%clk 0:00:38]} 47. Bd4 {[%clk 0:01:09]}  Rbxa6 {[%clk 0:00:38]} 48. Qb5 {[%clk 0:01:09]} 1-0


[Site "http://www.Chess.com"]

[Event "FIDE World Rapid Chess Championship 2021"]
[White "Shevchenko, Kirill"]
[Black "Movsesian, Sergei"]
[WhiteFideId "14129574"]
[BlackFideId "310204"]
[WhiteElo "2508"]
[BlackElo "2667"]
[Result "1-0"]
[Round "10"]
[TimeControl "900+10"]
[Date "2021.12.28"]
[WhiteClock "0:00:49"]
[BlackClock "0:00:00"]

1. e4 {[%clk 0:15:00]}  c5 {[%clk 0:15:00]} 2. Nf3 {[%clk 0:15:00]}  e6 {[%clk 0:15:00]} 3. c3 {[%clk 0:15:00]}  Nf6 {[%clk 0:15:32]} 4. e5 {[%clk 0:16:08]}  Nd5 {[%clk 0:15:32]} 5. Bc4 {[%clk 0:16:08]}  d6 {[%clk 0:15:32]} 6. d4 {[%clk 0:16:08]}  cxd4 {[%clk 0:15:32]} 7. cxd4 {[%clk 0:16:08]}  Be7 {[%clk 0:15:32]} 8. O-O {[%clk 0:16:08]}  O-O {[%clk 0:15:32]} 9. Qc2 {[%clk 0:16:08]}  Nc6 {[%clk 0:15:32]} 10. Nc3 {[%clk 0:15:38]}  Nxc3 {[%clk 0:13:25]} 11. bxc3 {[%clk 0:15:38]}  dxe5 {[%clk 0:13:25]} 12. dxe5 {[%clk 0:15:38]}  Qc7 {[%clk 0:13:25]} 13. Re1 {[%clk 0:15:38]}  Bd7 {[%clk 0:13:25]} 14. Bd3 {[%clk 0:15:38]}  g6 {[%clk 0:13:25]} 15. Bh6 {[%clk 0:13:24]}  Rfd8 {[%clk 0:12:51]} 16. h4 {[%clk 0:13:24]}  Rac8 {[%clk 0:12:51]} 17. Qc1 {[%clk 0:09:57]}  Be8 {[%clk 0:11:39]} 18. Be4 {[%clk 0:09:57]}  Nb8 {[%clk 0:10:35]} 19. Bg5 {[%clk 0:08:04]}  Bc6 {[%clk 0:10:35]} 20. Qf4 {[%clk 0:06:42]}  Bxe4 {[%clk 0:05:57]} 21. Rxe4 {[%clk 0:06:39]}  Rd3 {[%clk 0:05:57]} 22. h5 {[%clk 0:06:45]}  Rxc3 {[%clk 0:05:20]} 23. Bxe7 {[%clk 0:02:50]}  Qxe7 {[%clk 0:05:20]} 24. h6 {[%clk 0:02:50]}  Nd7 {[%clk 0:04:04]} 25. Rd1 {[%clk 0:02:45]}  Nb6 {[%clk 0:04:04]} 26. Ng5 {[%clk 0:00:57]}  Nd5 {[%clk 0:02:18]} 27. Qg4 {[%clk 0:00:57]}  b5 {[%clk 0:02:18]} 28. Red4 {[%clk 0:00:57]}  R3c4 {[%clk 0:01:05]} 29. g3 {[%clk 0:00:23]}  Rxd4 {[%clk 0:01:05]} 30. Rxd4 {[%clk 0:00:23]}  Rc1+ {[%clk 0:01:05]} 31. Kg2 {[%clk 0:00:15]}  Qb7 {[%clk 0:00:27]} 32. Kh2 {[%clk 0:00:15]}  Rc2 {[%clk 0:00:27]} 33. Ne4 {[%clk 0:00:15]}  Qe7 {[%clk 0:00:27]} 34. Qf3 {[%clk 0:00:15]}  Qf8 {[%clk 0:00:27]} 35. Kg2 {[%clk 0:00:15]}  Rc4 {[%clk 0:00:27]} 36. Rd3 {[%clk 0:00:15]}  Rc8 {[%clk 0:00:27]} 37. Nd6 {[%clk 0:00:15]}  Rd8 {[%clk 0:00:27]} 38. Rd1 {[%clk 0:00:15]}  Ne7 {[%clk 0:00:27]} 39. Qf6 {[%clk 0:00:15]}  Nd5 {[%clk 0:00:27]} 40. Qf3 {[%clk 0:00:15]}  Ne7 {[%clk 0:00:27]} 41. Qf6 {[%clk 0:00:15]}  Nd5 {[%clk 0:00:27]} 42. Qg5 {[%clk 0:00:15]}  f6 {[%clk 0:00:27]} 43. Qg4 {[%clk 0:00:15]}  f5 {[%clk 0:00:27]} 44. Qg5 {[%clk 0:00:15]}  Qe7 {[%clk 0:00:27]} 45. Qxe7 {[%clk 0:00:15]}  Nxe7 {[%clk 0:00:27]} 46. Rc1 {[%clk 0:00:15]}  Rd7 {[%clk 0:00:27]} 47. Ne8 {[%clk 0:00:15]}  Kf7 {[%clk 0:00:27]} 48. Nf6 {[%clk 0:00:15]}  Rd2 {[%clk 0:00:27]} 49. Rc7 {[%clk 0:00:15]}  Re2 {[%clk 0:00:00]} 50. Nxh7 {[%clk 0:00:49]} 1-0


[Site "http://www.Chess.com"]